fUSD/lending_fUSD_20241209
["ID","MTS","AMOUNT","RATE_DAILY","PERIOD"]
[344663689,1733704241490,-1528.69867871,0.000188,2]
[344663690,1733704241650,-372.80077324,0.000188,2]
[344663698,1733704243032,-411.94805953,0.000188,2]
[344663699,1733704243044,-1458.29956098,0.000188,2]
[344663700,1733704243055,-1565.96287627,0.000188,2]
[344663701,1733704243070,-479.26136609,0.000188,2]
[344663702,1733704243392,-2249.87092352,0.000188,2]
[344663703,1733704243416,-5151.61610553,0.000188,2]
[344663704,1733704243427,-5640.76685379,0.000188,2]
[344663705,1733704243440,-699.5899999,0.000188,2]
[344663706,1733704243453,-1192.9975616,0.000188,2]
[344663707,1733704243472,-592.48708101,0.000188,2]
[344663708,1733704243487,-897.1609803,0.000188,2]
[344663709,1733704243518,-250.48040969,0.000188,2]
[344663710,1733704243529,-1217.19431396,0.000188,2]
[344663711,1733704243540,-405.989586,0.000188,2]
[344663712,1733704243551,-1214.21651268,0.000188,2]
[344663713,1733704243562,-1238.24,0.000188,2]
[344663714,1733704243573,-2493.1,0.000188,2]
[344663715,1733704243604,-59440.0,0.000188,2]
[344663727,1733704246104,-731.0,0.000188,2]
[344663728,1733704246114,-4410.99865021,0.000188,2]
[344663729,1733704246138,-1652.3132,0.000188,2]
[344663730,1733704246157,-19984.18452001,0.000188,2]
[344663731,1733704246168,-598.3840994,0.000188,2]
[344663732,1733704246179,-14451.04548085,0.000188,2]
[344663733,1733704246216,-1275.764985,0.000188,2]
[344663734,1733704246302,-546.006,0.000188,2]
[344664033,1733705414159,208.4,0.00017408,30]
[344664051,1733705436255,-153.0,0.00015202,2]
[344664052,1733705436265,-553.89,0.00015508,2]
[344664054,1733705436274,-250.0,0.00017204,2]
[344664056,1733705436285,-483.68,0.00017211,2]
[344664058,1733705436294,-250.0,0.00017237,2]
[344664060,1733705436304,-500.0,0.00017342,2]
[344664062,1733705436315,-1643.59,0.00017369,2]
[344664064,1733705436324,-1500.0,0.00017402,2]
[344664066,1733705436334,-164.69,0.00017454,2]
[344664069,1733705436343,-162.25,0.00017591,2]
[344664072,1733705436352,-168.03,0.00017643,2]
[344664075,1733705436361,-150.0,0.00017644,2]
[344664078,1733705436370,-1000.0,0.0001768,2]
[344664081,1733705436379,-150.0,0.00017765,2]
[344664084,1733705436388,-553.89,0.00017772,2]
[344664086,1733705436398,-200.0,0.00017827,2]
[344664089,1733705436408,-300.0,0.00017859,2]
[344664092,1733705436417,-979.76,0.0001786,2]
[344664095,1733705436426,-308.658,0.0001786,2]
[344664098,1733705436436,-500.0,0.00017886,2]
[344664100,1733705436445,-300.0,0.00018,3]
[344664103,1733705436455,-300.0,0.00018,4]
[344664106,1733705436467,-1329.0,0.00018,2]
[344664109,1733705436476,-516.32,0.00018032,2]
[344664111,1733705436486,-983.15,0.0001804,2]
[344664112,1733705436495,-1010.39,0.00018141,2]
[344664114,1733705436504,-1089.78176655,0.00018239,2]
[344664116,1733705436514,-4351.42023345,0.00018241,2]
[344664118,1733705436544,-1035.82470022,0.00018241,2]
[344664119,1733705436563,-6586.40274826,0.00018241,2]
[344664120,1733705436585,-39873.35231807,0.00018241,2]
[344664121,1733705436597,-555.0,0.00018422,2]
[344664122,1733705436606,-166.67,0.00018422,2]
[344664123,1733705436616,-150.0,0.00018592,2]
[344664124,1733705436625,-631.0,0.00018592,2]
[344664125,1733705436635,-2004.0,0.00018592,2]
[344664126,1733705436645,-563.0,0.00018592,2]
[344664127,1733705436654,-1894.0,0.00018592,2]
[344664128,1733705436664,-362.33778817,0.00018592,2]
[344664129,1733705436722,-749.64299662,0.00018592,2]
[344664130,1733705436734,-141.01921521,0.00018592,2]
[344664131,1733705436743,-858.09038479,0.00018592,2]
[344664132,1733705436754,-999.621,0.00018592,2]
[344664133,1733705438179,-1904.28861521,0.00018592,2]
[344664134,1733705438189,-909.182,0.00018592,2]
[344664135,1733705438198,-535.0,0.00018592,2]
[344664136,1733705438207,-3530.0,0.00018592,2]
[344664137,1733705438218,-973.0,0.00018592,2]
[344664138,1733705438227,-150.0,0.00018592,2]
[344664139,1733705438237,-3709.06488002,0.00018592,2]
[344664140,1733705438257,-2255.93511998,0.00018592,2]
[344664141,1733705438265,-841.81082033,0.00018592,2]
[344664142,1733705438277,-325.18917967,0.00018592,2]
[344664143,1733705438287,-3252.87198503,0.00018592,2]
[344664144,1733705438391,-797.4,0.00018592,2]
[344664145,1733705438402,-21.70701497,0.00018592,2]
[344664146,1733705438411,-7048.97528843,0.00018592,2]
[344664147,1733705438419,-165.16122372,0.00018599,2]
[344664148,1733705438428,-150.0,0.00018608,2]
[344664149,1733705438438,-165.16122371,0.00018624,2]
[344664150,1733705438446,-181.81,0.0001863,2]
[344664151,1733705438455,-158.68,0.0001863,2]
[344664152,1733705438466,-150.0,0.0001863,2]
[344664153,1733705438475,-150.0,0.0001863,2]
[344664154,1733705438484,-150.0,0.0001863,2]
[344664155,1733705438494,-150.0,0.0001863,2]
[344664156,1733705438504,-165.16122371,0.0001865,2]
[344664157,1733705438513,-165.16122371,0.00018675,2]
[344664158,1733705438522,-179.4579,0.00018699,2]
[344664159,1733705438532,-38384.9823,0.00018699,2]
[344664160,1733705438541,-5359.8325,0.00018699,2]
[344664161,1733705438550,-6379.1762,0.00018699,2]
[344664162,1733705438559,-2449.2033,0.00018699,2]
[344664163,1733705438569,-1435.219,0.00018699,2]
[344664164,1733705438579,-186.564,0.00018699,2]
[344664165,1733705438588,-175.73340931,0.00018699,2]
[344664166,1733705438597,-175.73340931,0.000187,2]
[344664168,1733705438607,-53000.0,0.000187,2]
[344664169,1733705438616,-512.0242,0.000187,2]
[344664170,1733705438625,-6127.1493,0.000187,2]
[344664171,1733705438634,-545.0501,0.000187,2]
[344664172,1733705438644,-175.73340931,0.000187,2]
[344664173,1733705438654,-165.16122371,0.000187,2]
[344664175,1733705438663,-500.0,0.0001874,2]
[344664176,1733705438672,-500.0,0.0001874,2]
[344664177,1733705438681,-150.0,0.00018748,3]
[344664178,1733705438690,-150.0,0.00018748,2]
[344664179,1733705438699,-150.0,0.00018748,2]
[344664180,1733705438708,-1023.88349328,0.00018798,5]
[344664181,1733705438719,-854.0,0.00018799,2]
[344664182,1733705438729,-500.0,0.00018799,2]
[344664183,1733705438739,-346.95508147,0.00018799,2]
[344664184,1733705438748,-500.0,0.00018799,2]
[344664185,1733705438757,-500.0,0.00018799,2]
[344664186,1733705438767,-365.420036,0.00018799,2]
[344664187,1733705438776,-81541.89530392,0.00018799,7]
[344664188,1733705438788,-1019364.29361038,0.00018799,7]
[344664189,1733705438797,-749.29,0.00018799,2]
[344664190,1733705438807,-1023.88349329,0.00018799,5]
[344664191,1733705438816,-389308.3083377,0.000188,2]
[344664193,1733705438825,-7344.03654435,0.000188,2]
[344664195,1733705438836,-1000.1,0.000188,2]
[344664197,1733705438845,-974469.43406148,0.000188,2]
[344664198,1733705438856,-2436.1,0.000188,2]
[344664199,1733705438975,-52081.08036058,0.000188,2]
[344664200,1733705438990,-531.43571997,0.000188,2]
[344664201,1733705439001,-34858.14342588,0.000188,2]
[344664202,1733705439013,-1663.19033202,0.000188,2]
[344664203,1733705439050,-61909.90874423,0.000188,2]
[344664204,1733705439061,-4414.93242347,0.000188,2]
[344664206,1733705440181,-24246.61039157,0.000188,2]
[344664207,1733705440195,-115751.6438175,0.000188,2]
[344664208,1733705440207,-27814.70892022,0.000188,2]
[344664209,1733705440252,-437.15999989,0.000188,2]
[344664211,1733705441709,-476.72498046,0.000188,2]
[344664212,1733705441750,-530.69259837,0.000188,2]
[344664213,1733705441775,-255.52679759,0.000188,2]
[344664214,1733705441787,-3781.901572,0.000188,2]
[344664215,1733705441950,-0.10452629,0.000188,2]
[344664216,1733705441962,-266.34,0.000188,2]
[344664217,1733705441976,-4751.73684704,0.000188,2]
[344664219,1733705442000,-1336.05545381,0.000188,2]
[344664225,1733705443322,-888.2139957,0.000188,2]
[344664226,1733705443334,-745.369996,0.000188,2]
[344664227,1733705443345,-6013.98002429,0.000188,2]
[344664228,1733705443357,-10513.55690007,0.000188,2]
[344664229,1733705443368,-10522.612,0.000188,2]
[344664230,1733705443456,-8576.58079671,0.000188,2]
[344664231,1733705443472,-12992.32814022,0.000188,2]
[344664232,1733705443483,-99700.0,0.000188,2]
[344664233,1733705443557,-2508.48499,0.000188,2]
[344664234,1733705443568,-20020.0,0.000188,2]
[344664235,1733705443580,-320.84480634,0.000188,2]
[344664236,1733705443615,-3386.03999998,0.000188,2]
[344664237,1733705443632,-3184.25830106,0.000188,2]
[344664238,1733705443643,-901.99479484,0.000188,2]
[344664239,1733705443716,-172625.38389404,0.000188,2]
[344664240,1733705443727,-11356.95406274,0.000188,2]
[344664256,1733705447258,-2648.55466273,0.000188,2]
[344664257,1733705447270,-379.71008372,0.000188,2]
[344664258,1733705447282,-1104.89183922,0.000188,2]
[344664259,1733705447318,-730.27883011,0.000188,2]
[344664260,1733705447330,-40688.99999997,0.000188,2]
[344664261,1733705447381,-1003.01587519,0.000188,2]
[344664262,1733705447393,-342499.84141202,0.000188,2]
[344664263,1733705447443,-6836.67370257,0.000188,2]
[344664264,1733705447454,-4989.05,0.000188,2]
[344664265,1733705447467,-8190.0,0.000188,2]
[344664266,1733705447479,-1172.50000005,0.000188,2]
[344664267,1733705447512,-5570.45453968,0.000188,2]
[344664268,1733705447523,-335545.83433807,0.000188,2]
[344664269,1733705447535,-39600.0,0.000188,2]
[344664270,1733705447546,-6417.7600647,0.000188,2]
[344664271,1733705447557,-9996.7,0.000188,2]
[344664272,1733705447576,-7561.86528616,0.000188,2]
[344664273,1733705447588,-2600.53010337,0.000188,2]
[344664274,1733705447601,-1671.44554454,0.000188,2]
[344664277,1733705606348,90496.88624198,0.00018,30]
[344664278,1733705769600,450.0,0.00013,2]
[344664280,1733706210660,-1067.14938176,0.000149,2]
[344664281,1733706210681,-132.95061824,0.00014999,2]
[344664313,1733706634985,-597.19099428,0.000148,2]
[344664314,1733706634995,-2936.18513766,0.00014899,2]
[344664315,1733706635005,-2194.10550752,0.000149,3]
[344664316,1733706635049,-178.42449248,0.000149,3]
[344664317,1733706635059,-150.0,0.00014999,2]
[344664318,1733706635070,-500.0,0.00015,2]
[344664319,1733706635080,-558.81379197,0.00015,2]
[344664320,1733706635091,-16123.23227727,0.00015,2]
[344664321,1733706635235,-23151.95393076,0.00015,2]
[344664322,1733706635244,-647.75,0.00015004,2]
[344664323,1733706635254,-255.0,0.00016124,2]
[344664324,1733706635264,-613.05,0.00016881,2]
[344664325,1733706635273,-250.0,0.00016892,2]
[344664326,1733706635284,-250.0,0.00016938,2]
[344664327,1733706635293,-1958.41,0.0001696,2]
[344664328,1733706635303,-150.0,0.00016962,2]
[344664329,1733706635313,-250.0,0.00016987,2]
[344664330,1733706635323,-550.0,0.00017,2]
[344664331,1733706635332,-210.18,0.00017106,30]
[344664332,1733706635341,-647.75,0.00017268,2]
[344664333,1733706635350,-150.99,0.00017268,2]
[344664334,1733706635359,-362.0,0.00017339,2]
[344664335,1733706635372,-317.13,0.00017356,2]
[344664336,1733706635382,-4946.9,0.00017361,2]
[344664337,1733706635391,-402.99,0.00017361,2]
[344664338,1733706635401,-2979.44,0.00017361,2]
[344664339,1733706635410,-1506.13,0.00017361,2]
[344664340,1733706635419,-317.13,0.00017361,2]
[344664342,1733706635428,-317.13,0.00017365,2]
[344664344,1733706635437,-317.13,0.0001737,2]
[344664346,1733706635446,-317.13,0.00017374,2]
[344664348,1733706635455,-317.13,0.00017379,2]
[344664350,1733706635464,-317.13,0.00017384,2]
[344664352,1733706635474,-317.13,0.00017388,2]
[344664354,1733706635483,-317.13,0.00017393,2]
[344664355,1733706635492,-317.13,0.00017397,2]
[344664356,1733706635501,-317.13,0.00017402,2]
[344664358,1733706635511,-317.13,0.00017406,2]
[344664360,1733706635520,-317.13,0.00017411,2]
[344664361,1733706635529,-233.3,0.00017414,2]
[344664362,1733706635539,-317.13,0.00017416,2]
[344664369,1733706635802,-317.13,0.0001742,2]
[344664370,1733706635812,-317.13,0.00017425,2]
[344664371,1733706635822,-317.13,0.00017429,2]
[344664372,1733706635831,-317.13,0.00017434,2]
[344664373,1733706635841,-317.13,0.00017438,2]
[344664374,1733706635850,-317.13,0.00017443,2]
[344664375,1733706635859,-1000.0,0.0001745,2]
[344664376,1733706635869,-500.0,0.00017507,2]
[344664377,1733706635878,-500.0,0.00017507,2]
[344664378,1733706635887,-159.67,0.00017514,2]
[344664379,1733706635896,-2251.55211039,0.00017532,2]
[344664380,1733706635908,-4660.77788961,0.00017532,2]
[344664381,1733706635917,-39.22211039,0.00017579,2]
[344664382,1733706635936,-252.34246599,0.00017579,2]
[344664383,1733706635947,-370.72542362,0.00017579,2]
[344664384,1733706635956,-161.25,0.0001763,2]
[344664385,1733706635965,-96.71208349,0.0001786,2]
[344664386,1733706635976,-258.11291651,0.0001786,2]
[344664387,1733706635985,-152.64363839,0.000179,2]
[344664399,1733706637817,-2601.60786161,0.000179,2]
[344664400,1733706637827,-5438.61883419,0.000179,2]
[344664408,1733706639655,-5598.50000872,0.000179,2]
[344664409,1733706639739,-401.67,0.000179,2]
[344664410,1733706640631,-2495.0025944,0.000179,2]
[344664411,1733706640643,-666.87015005,0.000179,2]
[344664412,1733706640700,-2062.39801264,0.000179,2]
[344664413,1733706640710,-150.0,0.00018242,2]
[344664414,1733706640720,-2594.45709569,0.00018242,2]
[344664415,1733706642548,-282.0,0.00015232,2]
[344664416,1733706642557,-282.0,0.00015232,2]
[344664417,1733706642568,-282.0,0.00015232,2]
[344664418,1733706642578,-654.04768187,0.00018,6]
[344664419,1733706642589,-45.95231813,0.00018,6]
[344664420,1733706642598,-449.62848068,0.00018242,2]
[344664421,1733706642680,-282.0,0.00015232,2]
[344664422,1733706642689,-1037.07941141,0.00018242,2]
[344664423,1733706642701,-449.49601222,0.00018242,2]
[344664424,1733706642711,-167.24,0.00018306,2]
[344664425,1733706642720,-21.10078488,0.00018309,2]
[344664426,1733706642732,-989.32921512,0.00018309,2]
[344664427,1733706642742,-150.0,0.0001833,2]
[344664428,1733706642751,-810.67078488,0.00018426,2]
[344664429,1733706642778,-4488.03527715,0.00018426,2]
[344664430,1733706642788,-6527.88587088,0.00018426,2]
[344664431,1733706642800,-3805.40806709,0.00018426,2]
[344664432,1733706642810,-985.07,0.00018471,2]
[344664433,1733706642821,-150.197288,0.0001849,2]
[344664434,1733706642829,-1689.2624,0.00018492,2]
[344664435,1733706642838,-200.01,0.00018502,2]
[344664436,1733706642847,-1298.9508495,0.00018518,2]
[344664437,1733706642857,-493.64195265,0.00018545,2]
[344664438,1733706642866,-272.49261879,0.00018545,2]
[344664439,1733706642878,-97.7388457,0.00018545,2]
[344664440,1733706642888,-658.18927021,0.00018547,2]
[344664441,1733706642898,-200.0,0.00018547,2]
[344664442,1733706642908,-200.0,0.00018547,2]
[344664443,1733706642916,-277.67359837,0.00018549,2]
[344664444,1733706642925,-200.0,0.0001855,2]
[344664445,1733706642934,-877.58569361,0.00018551,2]
[344664446,1733706642943,-200.0,0.00018551,2]
[344664447,1733706642952,-291.64720571,0.00018551,2]
[344664448,1733706642964,-366.5420645,0.00018551,2]
[344664450,1733706642974,-170.8079355,0.00018551,2]
[344664454,1733706643009,-29.1920645,0.00018551,2]
[344664456,1733706643020,-277.67359837,0.00018552,2]
[344664458,1733706643031,-200.0,0.00018553,2]
[344664459,1733706643041,-277.67359837,0.00018553,2]
[344664460,1733706643051,-200.0,0.00018554,2]
[344664461,1733706643061,-370.23146449,0.00018555,2]
[344664462,1733706643071,-208.25519878,0.00018556,2]
[344664463,1733706643081,-493.64195265,0.00018556,2]
[344664464,1733706643091,-493.64195265,0.00018556,2]
[344664467,1733706643101,-658.18927021,0.00018557,2]
[344664468,1733706643111,-152.64780885,0.00018559,2]
[344664469,1733706643124,-47.35219115,0.00018559,2]
[344664470,1733706643134,-200.0,0.00018561,2]
[344664471,1733706643144,-877.58569361,0.00018564,2]
[344664472,1733706643154,-208.25519878,0.00018565,2]
[344664473,1733706643163,-200.0,0.00018568,2]
[344664474,1733706643359,-200.0,0.00018572,2]
[344664475,1733706643408,-277.67359837,0.00018572,2]
[344664476,1733706643418,-658.18927021,0.00018573,2]
[344664477,1733706643428,-208.25519878,0.00018574,2]
[344664478,1733706643438,-877.58569361,0.00018574,2]
[344664479,1733706643447,-200.0,0.00018574,2]
[344664480,1733706643457,-208.25519878,0.00018575,2]
[344664481,1733706643467,-200.0,0.00018577,2]
[344664482,1733706643477,-200.0,0.00018581,2]
[344664483,1733706643486,-200.0,0.00018581,2]
[344664484,1733706643495,-877.58569361,0.00018582,2]
[344664485,1733706643504,-493.64195265,0.00018584,2]
[344664486,1733706643514,-208.25519878,0.00018584,2]
[344664487,1733706643524,-200.0,0.00018586,2]
[344664488,1733706643533,-105.52299771,0.00018586,2]
[344664489,1733706644167,-552.6662725,0.00018586,2]
[344664490,1733706644178,-370.23146449,0.00018587,2]
[344664491,1733706644187,-200.0,0.00018588,2]
[344664492,1733706644196,-493.64195265,0.00018588,2]
[344664493,1733706644206,-877.58569361,0.00018588,2]
[344664494,1733706644214,-200.0,0.00018589,2]
[344664495,1733706644225,-200.0,0.00018591,2]
[344664496,1733706644235,-200.0,0.00018591,2]
[344664497,1733706644245,-208.25519878,0.00018592,2]
[344664498,1733706644255,-370.23146449,0.00018592,2]
[344664499,1733706644265,-200.0,0.00018592,2]
[344664500,1733706644274,-200.0,0.00018592,2]
[344664501,1733706644283,-306.061,0.00018592,2]
[344664502,1733706644292,-483.71,0.00018592,2]
[344664503,1733706644302,-563.0,0.00018592,2]
[344664504,1733706644311,-569.32632026,0.00018592,2]
[344664507,1733706645649,-282.0,0.00015232,2]
[344664508,1733706645662,-282.0,0.00015232,2]
[344664509,1733706645672,-282.0,0.00015232,2]
[344664510,1733706645681,-282.0,0.00015232,2]
[344664511,1733706645691,-282.0,0.00015232,2]
[344664512,1733706645701,-282.0,0.00015232,2]
[344664513,1733706645710,-282.0,0.00015232,2]
[344664514,1733706645720,-282.0,0.00015232,2]
[344664515,1733706645731,-282.0,0.00015232,2]
[344664516,1733706645741,-282.0,0.00015232,2]
[344664517,1733706645753,-1500.0,0.000181,6]
[344664518,1733706646007,-1005.78167974,0.00018592,2]
[344664519,1733706646018,-2180.965,0.00018593,2]
[344664520,1733706646029,-171.837,0.00018593,2]
[344664521,1733706646038,-277.67359837,0.00018594,2]
[344664522,1733706646048,-493.64195265,0.00018595,2]
[344664523,1733706646058,-200.0,0.00018595,2]
[344664524,1733706646068,-658.18927021,0.00018596,2]
[344664525,1733706646077,-370.23146449,0.00018597,2]
[344664526,1733706646087,-277.67359837,0.00018598,2]
[344664527,1733706646096,-370.23146449,0.00018599,2]
[344664528,1733706646106,-877.58569361,0.000186,2]
[344664529,1733706646115,-732.49594148,0.000186,2]
[344664530,1733706646125,-171.92235311,0.000186,2]
[344664531,1733706646134,-1964.0,0.000186,2]
[344664533,1733706646143,-1007.15,0.00018605,2]
[344664534,1733706646153,-995.88,0.00018608,2]
[344664535,1733706646163,-200.0,0.00018609,2]
[344664536,1733706646172,-171.92235302,0.00018611,2]
[344664537,1733706646182,-171.92235302,0.00018622,2]
[344664538,1733706646191,-171.92235302,0.00018633,2]
[344664539,1733706646200,-171.92235302,0.00018644,2]
[344664540,1733706646210,-171.92235302,0.00018656,2]
[344664541,1733706646220,-171.92235302,0.00018667,2]
[344664543,1733706646229,-171.92235302,0.00018678,2]
[344664545,1733706646238,-171.92235302,0.00018689,2]
[344664547,1733706646247,-4099.7134,0.00018699,2]
[344664549,1733706646256,-181.60798474,0.00018699,2]
[344664551,1733706646266,-43226.0011,0.000187,2]
[344664553,1733706646275,-1025.6845,0.000187,2]
[344664554,1733706646284,-171.92235302,0.000187,2]
[344664556,1733706646293,-181.60798474,0.000187,2]
[344664558,1733706646303,-4740.25308634,0.000187,2]
[344664560,1733706646312,-198.4154615,0.00018773,2]
[344664562,1733706646321,-500.0,0.00018773,2]
[344664564,1733706646331,-389.61784249,0.00018773,2]
[344664565,1733706646341,-11307.51,0.00018798,2]
[344664566,1733706646351,-11307.51,0.00018798,2]
[344664567,1733706646361,-11307.51,0.00018798,2]
[344664568,1733706646371,-11307.51,0.00018798,2]
[344664569,1733706646381,-11307.51,0.00018798,2]
[344664570,1733706646390,-11307.51,0.00018798,2]
[344664571,1733706646400,-11307.51,0.00018798,2]
[344664572,1733706646410,-11307.51,0.00018798,2]
[344664573,1733706646419,-11307.51,0.00018798,2]
[344664574,1733706646430,-11307.51,0.00018798,2]
[344664575,1733706646439,-11307.51,0.00018798,2]
[344664576,1733706646449,-11307.51,0.00018798,2]
[344664577,1733706646459,-11307.51,0.00018798,2]
[344664578,1733706646469,-11307.51,0.00018798,2]
[344664579,1733706646478,-11307.51,0.00018798,2]
[344664580,1733706646487,-11307.51,0.00018798,2]
[344664581,1733706646498,-11307.51,0.00018798,2]
[344664582,1733706646508,-11307.51,0.00018798,2]
[344664583,1733706646517,-11307.51,0.00018798,2]
[344664584,1733706646526,-11307.51,0.00018798,2]
[344664585,1733706646539,-11307.51,0.00018798,2]
[344664586,1733706646549,-11307.51,0.00018798,2]
[344664587,1733706646559,-11307.51,0.00018798,2]
[344664588,1733706646569,-11307.64143866,0.00018798,2]
[344664589,1733706646580,-150.197288,0.00018799,2]
[344664590,1733706646590,-7014.30482195,0.00018799,2]
[344664591,1733706646603,-263.13520023,0.00018799,2]
[344664592,1733706646642,-282.0,0.00015232,2]
[344664593,1733706646655,-2083.8000004,0.000182,6]
[344664594,1733706646670,-116.1999996,0.000182,6]
[344664595,1733706646681,-1298.99485878,0.00018799,2]
[344664596,1733706646703,-3311.49999887,0.00018799,2]
[344664597,1733706646728,-318.21,0.00018799,2]
[344664605,1733707508342,86024.5,0.0001,2]
[344664606,1733707508372,24579976.31615068,0.0001,2]
[344664607,1733707508400,110000.0,0.0001,2]
[344664608,1733707508440,5000.0,0.0001,2]
[344664610,1733707567027,749.99999901,7e-05,2]
[344664621,1733707802793,163.0,7e-05,30]
[344664622,1733707803873,163.0,9.253e-05,30]
[344664623,1733707803980,163.0,0.00011507,30]
[344664624,1733707811992,163.0,0.0001376,30]
[344664630,1733707831964,-686.783579,9.054e-05,2]
[344664631,1733707831974,-500.0,9.1e-05,3]
[344664632,1733707831984,-1100.0,9.2e-05,3]
[344664633,1733707831994,-1700.0,9.3e-05,3]
[344664634,1733707832003,-2300.0,9.4e-05,3]
[344664635,1733707832013,-300.0,9.414e-05,2]
[344664636,1733707832025,-150.0,9.414e-05,2]
[344664637,1733707832035,-73145.61482404,9.415e-05,2]
[344664638,1733707832047,-1203.261308,9.415e-05,2]
[344664639,1733707832131,-4174.75355292,9.415e-05,2]
[344664640,1733707832143,-575.96861591,9.415e-05,2]
[344664641,1733707832155,-3731.22829315,9.415e-05,2]
[344664642,1733707832292,-21682.17340598,9.415e-05,2]
[344664644,1733707832301,-2900.0,9.5e-05,3]
[344664646,1733707832311,-500.0,9.6e-05,3]
[344664648,1733707832320,-500.0,9.7e-05,3]
[344664650,1733707832330,-500.0,9.8e-05,3]
[344664652,1733707832339,-500.0,9.9e-05,3]
[344664654,1733707832350,-11831.16725237,9.973e-05,2]
[344664656,1733707837873,-13813.27079628,9.973e-05,2]
[344664657,1733707837884,-4717.36099216,9.973e-05,2]
[344664658,1733707837895,-1379.65049695,9.973e-05,2]
[344664676,1733707838205,-1493.44,9.973e-05,2]
[344664678,1733707838218,-25246.11046224,9.973e-05,2]
[344664680,1733707838227,-500.0,9.973e-05,2]
[344664682,1733707838237,-166.52686438,9.973e-05,2]
[344664684,1733707838247,-500.0,9.973e-05,2]
[344664685,1733707838256,-5983.91,9.999e-05,2]
[344664687,1733707838266,-178.20642209,9.999e-05,2]
[344664688,1733707838276,-50726.84442748,0.0001,2]
[344664689,1733707838288,-1304.15532754,0.0001,2]
[344664690,1733707839942,-682.1699239,0.0001,2]
[344664691,1733707839954,-20432.10192377,0.0001,2]
[344664692,1733707840126,-5088.35787337,0.0001,2]
[344664693,1733707840137,-19837.04537714,0.0001,2]
[344664694,1733707840149,-477.05219997,0.0001,2]
[344664695,1733707840160,-1043.20665814,0.0001,2]
[344664696,1733707840172,-3886.52165699,0.0001,2]
[344664697,1733707840185,-820.48652593,0.0001,2]
[344664700,1733707842865,-18239.36956388,0.0001,2]
[344664715,1733707843231,-13645.5629234,0.0001,2]
[344664716,1733707843243,-5690.20290182,0.0001,2]
[344664717,1733707843255,-70322.99315,0.0001,2]
[344664718,1733707843422,-6959.98258749,0.0001,2]
[344664719,1733707843433,-378.59197779,0.0001,2]
[344664723,1733707845792,-384.59837843,0.0001,2]
[344664724,1733707845804,-331.08846875,0.0001,2]
[344664725,1733707845816,-3950.92076763,0.0001,2]
[344664726,1733707845827,-1086.26651177,0.0001,2]
[344664727,1733707845955,-401.7982795,0.0001,2]
[344664728,1733707845967,-1246.3510272,0.0001,2]
[344664731,1733707847068,-24022.65595592,0.0001,2]
[344664732,1733707847079,-5014.0,0.0001,2]
[344664733,1733707847090,-2789.69539652,0.0001,2]
[344664734,1733707847107,-1821.43444022,0.0001,2]
[344664735,1733707847121,-2118.14892797,0.0001,2]
[344664740,1733708004356,513.69,0.000201,120]
[344664741,1733708103807,164.0,0.0001,30]
[344664742,1733708104127,164.0,0.00014258,30]
[344664744,1733708404385,165.0,0.0001,30]
[344664745,1733708704599,166.83628694,0.0001,30]
[344664803,1733708759447,-678.57,9.572e-05,2]
[344664804,1733708759483,-300.0,9.799e-05,2]
[344664805,1733708759520,-221.53,9.8e-05,2]
[344664806,1733708795577,-300.0,0.0001,7]
[344664807,1733708811303,-300.0,0.0001,4]
[344664808,1733708824153,-300.0,0.0001,3]
[344665405,1733709032089,-300.0,9.799e-05,2]
[344665406,1733709032101,-4919.175,9.8e-05,2]
[344665407,1733709032111,-220.82,9.8e-05,2]
[344665408,1733709032121,-171.41667537,9.8e-05,2]